[Event "*** Titled Tuesday Blitz"]
[Site "Chess.com"]
[Date "2018.12.04"]
[Round "5"]
[White "ChristopherYoo"]
[Black "Paparama_1917"]
[Result "0-1"]
[WhiteElo "2419"]
[BlackElo "2592"]
[TimeControl "180+2"]
[EndTime "14:09:00 PST"]
[Termination "Paparama_1917 won by checkmate"]

1. e4 {[%clk 0:03:01.9]} 1... c5 {[%clk 0:02:58.7]} 2. Nf3 {[%clk 0:03:02.2]}
2... e6 {[%clk 0:02:59.7]} 3. d4 {[%clk 0:03:02.8]} 3... cxd4 {[%clk 0:03:01.6]}
4. Nxd4 {[%clk 0:03:04.2]} 4... a6 {[%clk 0:03:03]} 5. c4 {[%clk 0:03:04.4]}
5... Nc6 {[%clk 0:03:00.5]} 6. Nc3 {[%clk 0:03:02.7]} 6... Nf6 {[%clk
0:03:01.2]} 7. Nxc6 {[%clk 0:03:00.1]} 7... dxc6 {[%clk 0:02:59.2]} 8. Qxd8+
{[%clk 0:02:52.8]} 8... Kxd8 {[%clk 0:03:01.1]} 9. Bg5 {[%clk 0:02:53.7]} 9...
e5 {[%clk 0:03:01.1]} 10. f4 {[%clk 0:02:45.6]} 10... h6 {[%clk 0:02:59.6]} 11.
Bxf6+ {[%clk 0:02:32.4]} 11... gxf6 {[%clk 0:02:59.7]} 12. O-O-O+ {[%clk
0:02:25.4]} 12... Kc7 {[%clk 0:03:00]} 13. f5 {[%clk 0:02:26.3]} 13... h5 {[%clk
0:02:51.5]} 14. Be2 {[%clk 0:02:25]} 14... h4 {[%clk 0:02:45.6]} 15. Rd3 {[%clk
0:02:16.5]} 15... Bd7 {[%clk 0:02:45.5]} 16. Rhd1 {[%clk 0:02:14.8]} 16... Rd8
{[%clk 0:02:46.2]} 17. Na4 {[%clk 0:01:53.6]} 17... Bh6+ {[%clk 0:02:39.9]} 18.
Kc2 {[%clk 0:01:53.8]} 18... b5 {[%clk 0:01:45.8]} 19. Nc5 {[%clk 0:01:01.6]}
19... Bc8 {[%clk 0:01:46]} 20. Rxd8 {[%clk 0:00:42.2]} 20... Rxd8 {[%clk
0:01:47.9]} 21. Rxd8 {[%clk 0:00:42.7]} 21... Kxd8 {[%clk 0:01:48.8]} 22. b4
{[%clk 0:00:39.3]} 22... Bf4 {[%clk 0:01:25.7]} 23. h3 {[%clk 0:00:39.7]} 23...
Be3 {[%clk 0:01:15.8]} 24. Kb3 {[%clk 0:00:37.4]} 24... Ke7 {[%clk 0:00:50.8]}
25. a4 {[%clk 0:00:33.5]} 25... Kd6 {[%clk 0:00:37.1]} 26. Nd3 {[%clk
0:00:07.4]} 26... bxc4+ {[%clk 0:00:37.6]} 27. Kxc4 {[%clk 0:00:07.9]} 27... a5
{[%clk 0:00:29.8]} 28. b5 {[%clk 0:00:05.6]} 28... Bb7 {[%clk 0:00:25.6]} 29.
Bf3 {[%clk 0:00:03.5]} 29... cxb5+ {[%clk 0:00:23.2]} 30. Kxb5 {[%clk
0:00:04.3]} 30... Bc6+ {[%clk 0:00:21.2]} 31. Kxa5 {[%clk 0:00:04.6]} 31... Bd2+
{[%clk 0:00:22.6]} 32. Kb6 {[%clk 0:00:04.6]} 32... Bxa4 {[%clk 0:00:23.6]} 33.
Nb2 {[%clk 0:00:03]} 33... Bb3 {[%clk 0:00:21.6]} 34. Be2 {[%clk 0:00:04.1]}
34... Be3+ {[%clk 0:00:21.8]} 35. Kb5 {[%clk 0:00:05.2]} 35... Bd4 {[%clk
0:00:21.5]} 36. Bc4 {[%clk 0:00:05.8]} 36... Bc2 {[%clk 0:00:22.7]} 37. Nd3
{[%clk 0:00:06.3]} 37... Bb1 {[%clk 0:00:22.2]} 38. Kb4 {[%clk 0:00:04.8]} 38...
Bc2 {[%clk 0:00:23.2]} 39. Kb5 {[%clk 0:00:05.1]} 39... Ke7 {[%clk 0:00:24.4]}
40. Kc6 {[%clk 0:00:02.9]} 40... Bd1 {[%clk 0:00:25.7]} 41. Nb4 {[%clk
0:00:02.8]} 41... Ba4+ {[%clk 0:00:25]} 42. Bb5 {[%clk 0:00:03.6]} 42... Bb3
{[%clk 0:00:23.9]} 43. Nd5+ {[%clk 0:00:04.8]} 43... Kf8 {[%clk 0:00:24.3]} 44.
Nxf6 {[%clk 0:00:04.8]} 44... Bc2 {[%clk 0:00:25]} 45. Bc4 {[%clk 0:00:04.4]}
45... Kg7 {[%clk 0:00:25.9]} 46. Ne8+ {[%clk 0:00:02.9]} 46... Kf8 {[%clk
0:00:26.7]} 47. Nd6 {[%clk 0:00:04.2]} 47... Ke7 {[%clk 0:00:25]} 48. Bd5 {[%clk
0:00:03.6]} 48... Bd3 {[%clk 0:00:22.7]} 49. Nc8+ {[%clk 0:00:02.9]} 49... Kf6
{[%clk 0:00:23.5]} 50. Nd6 {[%clk 0:00:03.3]} 50... Bf1 {[%clk 0:00:23.9]} 51.
Nxf7 {[%clk 0:00:03]} 51... Bxg2 {[%clk 0:00:24.1]} 52. Nd6 {[%clk 0:00:03.3]}
52... Bxh3 {[%clk 0:00:24.1]} 53. Kd7 {[%clk 0:00:04.6]} 53... Bf1 {[%clk
0:00:23.8]} 54. Ne8+ {[%clk 0:00:05.7]} 54... Kg5 {[%clk 0:00:22.4]} 55. Ke7
{[%clk 0:00:03]} 55... Bc5+ {[%clk 0:00:23.2]} 56. Kf7 {[%clk 0:00:02.7]} 56...
h3 {[%clk 0:00:24.3]} 57. Ng7 {[%clk 0:00:02.9]} 57... h2 {[%clk 0:00:25.3]} 58.
Ne6+ {[%clk 0:00:03.9]} 58... Kg4 {[%clk 0:00:25.8]} 59. Nxc5 {[%clk 0:00:02.8]}
59... h1=Q {[%clk 0:00:27.3]} 60. f6 {[%clk 0:00:03.5]} 60... Qh7+ {[%clk
0:00:28.2]} 61. Ke8 {[%clk 0:00:02.7]} 61... Bb5+ {[%clk 0:00:29.1]} 62. Kd8
{[%clk 0:00:02]} 62... Kg5 {[%clk 0:00:29.6]} 63. f7 {[%clk 0:00:02.9]} 63...
Qh8+ {[%clk 0:00:28.4]} 64. Kc7 {[%clk 0:00:04.1]} 64... Kf6 {[%clk 0:00:26.2]}
65. Nb7 {[%clk 0:00:03.3]} 65... Ke7 {[%clk 0:00:21.6]} 66. Bb3 {[%clk 0:00:02]}
66... Bd7 {[%clk 0:00:21.3]} 67. Bd5 {[%clk 0:00:02.9]} 67... Bg4 {[%clk
0:00:20.7]} 68. Bb3 {[%clk 0:00:02.6]} 68... Qf8 {[%clk 0:00:21.8]} 69. Bd5
{[%clk 0:00:03.1]} 69... Qh8 {[%clk 0:00:22.9]} 70. Bb3 {[%clk 0:00:03.8]} 70...
Be2 {[%clk 0:00:24]} 71. Bd5 {[%clk 0:00:04]} 71... Ba6 {[%clk 0:00:25.1]} 72.
Nc5 {[%clk 0:00:02.5]} 72... Qd8+ {[%clk 0:00:25.3]} 73. Kc6 {[%clk 0:00:02.6]}
73... Qd6# {[%clk 0:00:26.5]} 0-1

[Event "*** Titled Tuesday Blitz"]
[Site "Chess.com"]
[Date "2018.12.04"]
[Round "5"]
[White "NeverEverForever1990"]
[Black "Vuk2000"]
[Result "1-0"]
[WhiteElo "2450"]
[BlackElo "2647"]
[TimeControl "180+2"]
[EndTime "14:09:13 PST"]
[Termination "NeverEverForever1990 won by resignation"]

1. Nf3 {[%clk 0:03:01.9]} 1... Nf6 {[%clk 0:03:00.1]} 2. d4 {[%clk 0:03:00.1]}
2... e6 {[%clk 0:03:01]} 3. Bf4 {[%clk 0:03:00.8]} 3... d5 {[%clk 0:03:01.8]} 4.
e3 {[%clk 0:03:01.9]} 4... Bd6 {[%clk 0:03:02.7]} 5. Bxd6 {[%clk 0:03:02.1]}
5... Qxd6 {[%clk 0:03:04.6]} 6. c4 {[%clk 0:03:03.2]} 6... O-O {[%clk
0:03:03.3]} 7. Nc3 {[%clk 0:03:03.3]} 7... b6 {[%clk 0:03:00.9]} 8. Rc1 {[%clk
0:03:02.3]} 8... Bb7 {[%clk 0:03:01.5]} 9. cxd5 {[%clk 0:02:55.3]} 9... Nxd5
{[%clk 0:02:58.1]} 10. Bd3 {[%clk 0:02:53.1]} 10... Nxc3 {[%clk 0:02:53]} 11.
Rxc3 {[%clk 0:02:53.4]} 11... Nd7 {[%clk 0:02:43.2]} 12. O-O {[%clk 0:02:47.3]}
12... Nf6 {[%clk 0:02:39.7]} 13. Ne5 {[%clk 0:02:29.7]} 13... c5 {[%clk
0:02:32.6]} 14. Nc4 {[%clk 0:02:27.3]} 14... Qd5 {[%clk 0:02:33.5]} 15. f3
{[%clk 0:01:46.5]} 15... cxd4 {[%clk 0:02:31.2]} 16. e4 {[%clk 0:01:46.5]} 16...
Qd8 {[%clk 0:02:00.5]} 17. Rc2 {[%clk 0:01:43.4]} 17... Ba6 {[%clk 0:02:00]} 18.
Ne5 {[%clk 0:01:37]} 18... Bxd3 {[%clk 0:01:57.7]} 19. Qxd3 {[%clk 0:01:38]}
19... Qd6 {[%clk 0:01:57.3]} 20. Nc4 {[%clk 0:01:37.2]} 20... Qc5 {[%clk
0:01:49.7]} 21. Na3 {[%clk 0:01:26.7]} 21... Qe5 {[%clk 0:01:22.9]} 22. Nc4
{[%clk 0:01:24.8]} 22... Qc7 {[%clk 0:01:21.9]} 23. Qxd4 {[%clk 0:01:12]} 23...
Rfd8 {[%clk 0:01:22.1]} 24. Qe5 {[%clk 0:01:13.3]} 24... Qe7 {[%clk 0:01:21]}
25. Ne3 {[%clk 0:01:07.6]} 25... Rac8 {[%clk 0:01:19.7]} 26. Nf5 {[%clk
0:01:01.2]} 26... Qf8 {[%clk 0:01:16.8]} 27. Rxc8 {[%clk 0:00:51.6]} 27... Rxc8
{[%clk 0:01:16.4]} 28. Nd6 {[%clk 0:00:34.4]} 28... Rd8 {[%clk 0:01:17.5]} 29.
Nb5 {[%clk 0:00:21.8]} 29... Qe7 {[%clk 0:01:07.7]} 30. Rc1 {[%clk 0:00:18.6]}
30... Ne8 {[%clk 0:01:08.4]} 31. Qc3 {[%clk 0:00:18.8]} 31... a6 {[%clk
0:01:04.4]} 32. Na3 {[%clk 0:00:18.4]} 32... b5 {[%clk 0:01:02.1]} 33. Nc2
{[%clk 0:00:19.5]} 33... Qa7+ {[%clk 0:00:53.1]} 34. Ne3 {[%clk 0:00:18.4]}
34... h6 {[%clk 0:00:51.4]} 35. Kf1 {[%clk 0:00:19.7]} 35... Nd6 {[%clk
0:00:47.9]} 36. Rd1 {[%clk 0:00:19.9]} 36... Rc8 {[%clk 0:00:43.4]} 37. Qd3
{[%clk 0:00:20.3]} 37... Ne8 {[%clk 0:00:35.2]} 38. Ng4 {[%clk 0:00:21.5]} 38...
Qc5 {[%clk 0:00:33.8]} 39. Rd2 {[%clk 0:00:13.8]} 39... h5 {[%clk 0:00:33]} 40.
Ne3 {[%clk 0:00:14.5]} 40... Qb6 {[%clk 0:00:30.7]} 41. Rc2 {[%clk 0:00:15.4]}
41... Rd8 {[%clk 0:00:31.4]} 42. Qe2 {[%clk 0:00:16]} 42... Qa5 {[%clk
0:00:30.6]} 43. a3 {[%clk 0:00:15]} 43... Nf6 {[%clk 0:00:31.3]} 44. Kf2 {[%clk
0:00:15.4]} 44... Qb6 {[%clk 0:00:31.4]} 45. Rd2 {[%clk 0:00:16.5]} 45... Rc8
{[%clk 0:00:32.1]} 46. Qd1 {[%clk 0:00:17.8]} 46... Qc7 {[%clk 0:00:28.7]} 47.
Rc2 {[%clk 0:00:17.8]} 47... Qb8 {[%clk 0:00:28.6]} 48. Rxc8+ {[%clk 0:00:18.7]}
48... Qxc8 {[%clk 0:00:30.5]} 49. Qc2 {[%clk 0:00:20]} 49... Qb8 {[%clk
0:00:31.9]} 50. h3 {[%clk 0:00:19.7]} 50... h4 {[%clk 0:00:32.3]} 51. Ng4 {[%clk
0:00:19]} 51... Qb6+ {[%clk 0:00:25.6]} 52. Ne3 {[%clk 0:00:18.7]} 52... Nh5
{[%clk 0:00:26]} 53. Qc8+ {[%clk 0:00:18.4]} 53... Kh7 {[%clk 0:00:27.1]} 54.
Qd7 {[%clk 0:00:19.6]} 54... Kg6 {[%clk 0:00:28.5]} 55. e5 {[%clk 0:00:17.4]}
55... Nf4 {[%clk 0:00:27.7]} 56. Qc8 {[%clk 0:00:17.5]} 56... Nd5 {[%clk
0:00:27.8]} 57. Qc2+ {[%clk 0:00:18.4]} 57... Kg5 {[%clk 0:00:28.6]} 58. Qe4
{[%clk 0:00:19.6]} 58... Nxe3 {[%clk 0:00:19.5]} 59. f4+ {[%clk 0:00:20.1]}
59... Kh5 {[%clk 0:00:19]} 60. Qxe3 {[%clk 0:00:22]} 60... Qxe3+ {[%clk
0:00:19.8]} 61. Kxe3 {[%clk 0:00:23.9]} 61... g5 {[%clk 0:00:21.1]} 62. Kf3
{[%clk 0:00:23.3]} 62... Kg6 {[%clk 0:00:20.2]} 63. Kg4 {[%clk 0:00:24.2]} 63...
gxf4 {[%clk 0:00:18.8]} 64. b4 {[%clk 0:00:23.1]} 64... f6 {[%clk 0:00:14.3]}
65. exf6 {[%clk 0:00:23.4]} 65... e5 {[%clk 0:00:12.8]} 66. Kxh4 {[%clk
0:00:24.4]} 66... e4 {[%clk 0:00:06]} 67. Kg4 {[%clk 0:00:24.9]} 67... e3 {[%clk
0:00:04.5]} 68. Kf3 {[%clk 0:00:26]} 68... Kxf6 {[%clk 0:00:05.6]} 69. g3 {[%clk
0:00:27.2]} 69... fxg3 {[%clk 0:00:06.5]} 70. Kxe3 {[%clk 0:00:28.1]} 70... Kg5
{[%clk 0:00:05.9]} 71. Kf3 {[%clk 0:00:29.3]} 71... Kh4 {[%clk 0:00:07.3]} 72.
Kg2 {[%clk 0:00:30.5]} 72... a5 {[%clk 0:00:09.2]} 73. bxa5 {[%clk 0:00:31.3]}
1-0

[Event "*** Titled Tuesday Blitz"]
[Site "Chess.com"]
[Date "2018.12.04"]
[Round "5"]
[White "chidori_boruto"]
[Black "Benek77"]
[Result "0-1"]
[WhiteElo "2567"]
[BlackElo "2593"]
[TimeControl "180+2"]
[EndTime "14:10:05 PST"]
[Termination "Benek77 won on time"]

1. d4 {[%clk 0:03:01.9]} 1... Nf6 {[%clk 0:03:00.5]} 2. Nf3 {[%clk 0:03:02.4]}
2... g6 {[%clk 0:03:01.1]} 3. Bg5 {[%clk 0:03:03]} 3... Bg7 {[%clk 0:03:01.9]}
4. Nbd2 {[%clk 0:03:03.1]} 4... O-O {[%clk 0:02:58]} 5. e4 {[%clk 0:03:04.1]}
5... d6 {[%clk 0:02:57.1]} 6. c3 {[%clk 0:03:01.8]} 6... c5 {[%clk 0:02:56.3]}
7. dxc5 {[%clk 0:03:02.6]} 7... dxc5 {[%clk 0:02:57.6]} 8. Bc4 {[%clk
0:03:04.1]} 8... Nc6 {[%clk 0:02:57.5]} 9. O-O {[%clk 0:03:05]} 9... Qc7 {[%clk
0:02:57.4]} 10. Qe2 {[%clk 0:03:04.8]} 10... h6 {[%clk 0:02:56.8]} 11. Bh4
{[%clk 0:03:05]} 11... Nh5 {[%clk 0:02:58]} 12. Rfe1 {[%clk 0:03:03.3]} 12...
Bg4 {[%clk 0:02:52.2]} 13. Bg3 {[%clk 0:02:59.3]} 13... Nxg3 {[%clk 0:02:46.4]}
14. hxg3 {[%clk 0:03:01.2]} 14... Ne5 {[%clk 0:02:45.9]} 15. Bb3 {[%clk
0:02:58.2]} 15... Rad8 {[%clk 0:02:46.3]} 16. Nc4 {[%clk 0:02:50.7]} 16... b5
{[%clk 0:02:28.8]} 17. Ne3 {[%clk 0:02:47.8]} 17... Bxf3 {[%clk 0:02:25.6]} 18.
gxf3 {[%clk 0:02:47.6]} 18... Rd2 {[%clk 0:02:27.2]} 19. Qxb5 {[%clk 0:02:30.9]}
19... Nxf3+ {[%clk 0:02:27.7]} 20. Kg2 {[%clk 0:02:31.9]} 20... Nxe1+ {[%clk
0:02:27.5]} 21. Rxe1 {[%clk 0:02:33.8]} 21... Rb8 {[%clk 0:02:12.5]} 22. Qc4
{[%clk 0:02:32]} 22... e6 {[%clk 0:02:14.1]} 23. Re2 {[%clk 0:02:30.9]} 23...
Rxe2 {[%clk 0:02:13.1]} 24. Qxe2 {[%clk 0:02:32.8]} 24... Qd6 {[%clk 0:02:13.9]}
25. Nc4 {[%clk 0:02:30.9]} 25... Qa6 {[%clk 0:02:14.6]} 26. Qe3 {[%clk
0:02:29.6]} 26... Qc6 {[%clk 0:02:12.6]} 27. f3 {[%clk 0:02:25.7]} 27... Kh7
{[%clk 0:02:11.3]} 28. Kf2 {[%clk 0:02:25]} 28... Rd8 {[%clk 0:02:07.5]} 29. Bc2
{[%clk 0:02:21.5]} 29... f5 {[%clk 0:02:03]} 30. e5 {[%clk 0:02:19.1]} 30... Qd5
{[%clk 0:02:00.5]} 31. Bb3 {[%clk 0:02:15.6]} 31... Qd3 {[%clk 0:01:57.9]} 32.
Qxd3 {[%clk 0:02:13.4]} 32... Rxd3 {[%clk 0:01:59.8]} 33. f4 {[%clk 0:02:11.4]}
33... g5 {[%clk 0:02:00.6]} 34. Bc2 {[%clk 0:02:11.5]} 34... Rd8 {[%clk
0:01:59.2]} 35. Nd6 {[%clk 0:02:11.3]} 35... Bf8 {[%clk 0:01:56.1]} 36. Nc4
{[%clk 0:02:05.6]} 36... gxf4 {[%clk 0:01:57.5]} 37. gxf4 {[%clk 0:02:07]} 37...
Be7 {[%clk 0:01:57.8]} 38. a4 {[%clk 0:02:02.6]} 38... Bh4+ {[%clk 0:01:58.3]}
39. Kf3 {[%clk 0:02:02.6]} 39... Rg8 {[%clk 0:01:58.9]} 40. Ne3 {[%clk
0:02:01.6]} 40... Rg3+ {[%clk 0:01:53.6]} 41. Ke2 {[%clk 0:02:02.2]} 41... Rh3
{[%clk 0:01:54.9]} 42. Nf1 {[%clk 0:01:42.1]} 42... Bg3 {[%clk 0:01:45.3]} 43.
Kf3 {[%clk 0:01:38]} 43... Be1+ {[%clk 0:01:36.1]} 44. Ke2 {[%clk 0:01:36.3]}
44... Bh4 {[%clk 0:01:30.4]} 45. Bb3 {[%clk 0:01:34.3]} 45... Bd8 {[%clk
0:01:24]} 46. Bxe6 {[%clk 0:01:34.2]} 46... Kg6 {[%clk 0:01:23]} 47. Ne3 {[%clk
0:01:33.4]} 47... Rh2+ {[%clk 0:01:17.1]} 48. Kd3 {[%clk 0:01:31.4]} 48... Rxb2
{[%clk 0:01:11.3]} 49. Bxf5+ {[%clk 0:01:31]} 49... Kf7 {[%clk 0:01:12.7]} 50.
Be4 {[%clk 0:01:30.6]} 50... h5 {[%clk 0:01:12.7]} 51. f5 {[%clk 0:01:30.4]}
51... h4 {[%clk 0:01:14]} 52. Bd5+ {[%clk 0:01:30.8]} 52... Kf8 {[%clk
0:01:15.6]} 53. f6 {[%clk 0:01:09.1]} 53... h3 {[%clk 0:01:15.5]} 54. Nf5 {[%clk
0:00:50.3]} 54... h2 {[%clk 0:01:12.6]} 55. Nh4 {[%clk 0:00:47.8]} 55... Rf2
{[%clk 0:01:07.2]} 56. Ke3 {[%clk 0:00:39.6]} 56... Rf1 {[%clk 0:00:59.2]} 57.
Ng6+ {[%clk 0:00:18.9]} 57... Ke8 {[%clk 0:01:00.3]} 58. Nh8 {[%clk 0:00:13.4]}
58... h1=Q {[%clk 0:00:57.8]} 59. f7+ {[%clk 0:00:13.9]} 59... Kf8 {[%clk
0:00:45.8]} 60. Ng6+ {[%clk 0:00:13.5]} 60... Kg7 {[%clk 0:00:47.2]} 61. Bxh1
{[%clk 0:00:10.3]} 61... Kxg6 {[%clk 0:00:48.6]} 62. Bd5 {[%clk 0:00:10.2]}
62... Rxf7 {[%clk 0:00:45.1]} 63. Bxf7+ {[%clk 0:00:10.4]} 63... Kxf7 {[%clk
0:00:47]} 64. Kd3 {[%clk 0:00:11.2]} 64... Ke6 {[%clk 0:00:47.8]} 65. Kc4 {[%clk
0:00:12.2]} 65... Kxe5 {[%clk 0:00:40.9]} 66. Kxc5 {[%clk 0:00:13.4]} 66... Bb6+
{[%clk 0:00:37.2]} 67. Kc6 {[%clk 0:00:13.4]} 67... Ke6 {[%clk 0:00:37.9]} 68.
c4 {[%clk 0:00:14]} 68... Bd8 {[%clk 0:00:18.3]} 69. c5 {[%clk 0:00:11]} 69...
a5 {[%clk 0:00:18.3]} 70. Kb7 {[%clk 0:00:08.2]} 70... Kd5 {[%clk 0:00:17.1]}
71. c6 {[%clk 0:00:07.3]} 71... Kd6 {[%clk 0:00:19]} 72. Kc8 {[%clk 0:00:07.4]}
72... Bb6 {[%clk 0:00:07.4]} 73. Kb7 {[%clk 0:00:08.1]} 73... Bd8 {[%clk
0:00:06.1]} 74. Kc8 {[%clk 0:00:09]} 74... Kxc6 {[%clk 0:00:07.5]} 75. Kxd8
{[%clk 0:00:10.1]} 75... Kc5 {[%clk 0:00:09.4]} 76. Kc7 {[%clk 0:00:11.1]} 76...
Kb4 {[%clk 0:00:11.3]} 77. Kb6 {[%clk 0:00:12]} 77... Kxa4 {[%clk 0:00:13.2]}
78. Kc5 {[%clk 0:00:12.2]} 78... Kb3 {[%clk 0:00:14.5]} 79. Kd4 {[%clk
0:00:13.4]} 79... a4 {[%clk 0:00:16.4]} 80. Kd3 {[%clk 0:00:14.7]} 80... a3
{[%clk 0:00:18.3]} 81. Kd2 {[%clk 0:00:15.7]} 81... a2 {[%clk 0:00:20.2]} 0-1

[Event "*** Titled Tuesday Blitz"]
[Site "Chess.com"]
[Date "2018.12.04"]
[Round "5"]
[White "1stSecond"]
[Black "martinique24"]
[Result "0-1"]
[WhiteElo "2617"]
[BlackElo "2429"]
[TimeControl "180+2"]
[EndTime "14:10:38 PST"]
[Termination "martinique24 won by resignation"]

1. c4 {[%clk 0:03:01.9]} 1... c5 {[%clk 0:02:58.1]} 2. Nf3 {[%clk 0:03:02.7]}
2... Nf6 {[%clk 0:02:57.6]} 3. Nc3 {[%clk 0:03:02.8]} 3... d5 {[%clk 0:02:57.9]}
4. d4 {[%clk 0:03:04.4]} 4... cxd4 {[%clk 0:02:57.7]} 5. Nxd4 {[%clk 0:03:05.6]}
5... dxc4 {[%clk 0:02:57.7]} 6. e3 {[%clk 0:03:01.5]} 6... e6 {[%clk 0:02:50.3]}
7. Bxc4 {[%clk 0:03:01.8]} 7... Be7 {[%clk 0:02:51.7]} 8. O-O {[%clk 0:03:02.5]}
8... O-O {[%clk 0:02:52.9]} 9. b3 {[%clk 0:02:51.9]} 9... Nbd7 {[%clk
0:02:46.1]} 10. Bb2 {[%clk 0:02:52.4]} 10... Nb6 {[%clk 0:02:44]} 11. Be2 {[%clk
0:02:53]} 11... Bd7 {[%clk 0:02:45]} 12. Bf3 {[%clk 0:02:50.8]} 12... Nbd5
{[%clk 0:02:41.1]} 13. Nxd5 {[%clk 0:02:49.6]} 13... Nxd5 {[%clk 0:02:42.2]} 14.
Nf5 {[%clk 0:02:49.6]} 14... Bf6 {[%clk 0:02:06]} 15. Bxf6 {[%clk 0:02:34.2]}
15... Nxf6 {[%clk 0:01:48.2]} 16. Nd6 {[%clk 0:02:34.4]} 16... Bc6 {[%clk
0:01:33.2]} 17. Nxb7 {[%clk 0:02:27.2]} 17... Bxf3 {[%clk 0:01:34]} 18. Qxd8
{[%clk 0:01:59]} 18... Rfxd8 {[%clk 0:01:32]} 19. gxf3 {[%clk 0:01:58.2]} 19...
Rd5 {[%clk 0:01:23.1]} 20. Rfd1 {[%clk 0:01:51.8]} 20... Rg5+ {[%clk 0:01:15.3]}
21. Kf1 {[%clk 0:01:52.3]} 21... Rh5 {[%clk 0:01:15.6]} 22. Kg2 {[%clk
0:00:54.2]} 22... Rg5+ {[%clk 0:01:16.5]} 23. Kh1 {[%clk 0:00:55.4]} 23... Rf5
{[%clk 0:01:18]} 24. f4 {[%clk 0:00:56.3]} 24... e5 {[%clk 0:01:16.8]} 25. Nd6
{[%clk 0:00:56.8]} 25... Rh5 {[%clk 0:01:15.9]} 26. fxe5 {[%clk 0:00:53.5]}
26... Ng4 {[%clk 0:01:16.9]} 27. Kg2 {[%clk 0:00:51.7]} 27... Nxe5 {[%clk
0:01:10.6]} 28. f4 {[%clk 0:00:52]} 28... Ng4 {[%clk 0:01:11]} 29. Kf3 {[%clk
0:00:49.2]} 29... f5 {[%clk 0:00:53.2]} 30. Nxf5 {[%clk 0:00:44]} 30... Nxh2+
{[%clk 0:00:54.2]} 31. Kg3 {[%clk 0:00:44.2]} 31... Rxf5 {[%clk 0:00:54.4]} 32.
Kxh2 {[%clk 0:00:45.8]} 32... Re8 {[%clk 0:00:55.1]} 33. Rd3 {[%clk 0:00:43.9]}
33... g5 {[%clk 0:00:54.8]} 34. Rg1 {[%clk 0:00:43.3]} 34... h6 {[%clk
0:00:55.4]} 35. Rg3 {[%clk 0:00:28.4]} 35... Re7 {[%clk 0:00:43.2]} 36. Rd6
{[%clk 0:00:28.4]} 36... Kg7 {[%clk 0:00:44.1]} 37. Ra6 {[%clk 0:00:29.1]} 37...
Kh7 {[%clk 0:00:38.7]} 38. fxg5 {[%clk 0:00:29.8]} 38... hxg5 {[%clk 0:00:39.7]}
39. Kg2 {[%clk 0:00:31]} 39... Ref7 {[%clk 0:00:37.9]} 40. b4 {[%clk 0:00:30.6]}
40... Rc7 {[%clk 0:00:30.2]} 41. a4 {[%clk 0:00:29.4]} 41... Rd5 {[%clk
0:00:27.7]} 42. b5 {[%clk 0:00:29.6]} 42... Rd2+ {[%clk 0:00:19.4]} 43. Kf3
{[%clk 0:00:30.8]} 43... Rd5 {[%clk 0:00:16.8]} 44. Ke4 {[%clk 0:00:26.7]} 44...
Rdc5 {[%clk 0:00:17.3]} 45. Rh3+ {[%clk 0:00:22.9]} 45... Kg7 {[%clk 0:00:17.9]}
46. Rhh6 {[%clk 0:00:24.8]} 46... Re7+ {[%clk 0:00:18.9]} 47. Kf3 {[%clk
0:00:24.2]} 47... Rce5 {[%clk 0:00:20.1]} 48. Rhg6+ {[%clk 0:00:08.6]} 48... Kh7
{[%clk 0:00:19.9]} 49. Kg4 {[%clk 0:00:09.4]} 49... Rxe3 {[%clk 0:00:17.9]} 50.
Rxg5 {[%clk 0:00:09.1]} 50... R7e4+ {[%clk 0:00:17.6]} 51. Kf5 {[%clk
0:00:09.3]} 51... Re7 {[%clk 0:00:17.1]} 52. Rh5+ {[%clk 0:00:09.9]} 52... Kg7
{[%clk 0:00:18.3]} 53. Rg6+ {[%clk 0:00:11.4]} 53... Kf7 {[%clk 0:00:18.7]} 54.
Rh7+ {[%clk 0:00:12.7]} 54... Ke8 {[%clk 0:00:19.5]} 55. Rg8+ {[%clk 0:00:13.8]}
55... Kd7 {[%clk 0:00:20.5]} 56. Rxe7+ {[%clk 0:00:14.2]} 56... Rxe7 {[%clk
0:00:22.1]} 57. Rg6 {[%clk 0:00:09]} 57... Kc7 {[%clk 0:00:22.8]} 58. a5 {[%clk
0:00:07.9]} 58... Kb7 {[%clk 0:00:23.5]} 59. Re6 {[%clk 0:00:07.4]} 59... Rh7
{[%clk 0:00:20.5]} 60. Ke4 {[%clk 0:00:03.6]} 60... Rh1 {[%clk 0:00:21.1]} 61.
Re7+ {[%clk 0:00:04.1]} 61... Kb8 {[%clk 0:00:22.5]} 62. Kd5 {[%clk 0:00:04.4]}
62... Rd1+ {[%clk 0:00:22.8]} 63. Kc6 {[%clk 0:00:05.4]} 63... Rc1+ {[%clk
0:00:24]} 64. Kd7 {[%clk 0:00:06.5]} 64... Rd1+ {[%clk 0:00:25.3]} 65. Ke8
{[%clk 0:00:07.6]} 65... Rd5 {[%clk 0:00:26.1]} 66. b6 {[%clk 0:00:05]} 66...
axb6 {[%clk 0:00:26.3]} 67. a6 {[%clk 0:00:06]} 67... Ra5 {[%clk 0:00:26.9]} 68.
Kd7 {[%clk 0:00:02.7]} 68... Ka7 {[%clk 0:00:24.8]} 69. Kc6+ {[%clk 0:00:02.1]}
69... Kxa6 {[%clk 0:00:25.7]} 70. Re1 {[%clk 0:00:02.8]} 70... Rc5+ {[%clk
0:00:26.8]} 71. Kd6 {[%clk 0:00:04.3]} 71... Rc8 {[%clk 0:00:27.9]} 72. Ra1+
{[%clk 0:00:05.4]} 72... Kb7 {[%clk 0:00:28.8]} 73. Rb1 {[%clk 0:00:06.7]} 73...
Rc2 {[%clk 0:00:29.2]} 74. Kd5 {[%clk 0:00:08]} 74... Rc5+ {[%clk 0:00:23.7]}
75. Kd6 {[%clk 0:00:07.7]} 75... Rc8 {[%clk 0:00:22.5]} 76. Rb2 {[%clk
0:00:08.1]} 76... Rd8+ {[%clk 0:00:23.3]} 77. Ke6 {[%clk 0:00:08.4]} 77... Rc8
{[%clk 0:00:21.5]} 78. Kd6 {[%clk 0:00:09.2]} 78... Rc5 {[%clk 0:00:22.6]} 79.
Rb1 {[%clk 0:00:10]} 79... Rh5 {[%clk 0:00:23.5]} 80. Rb2 {[%clk 0:00:08.6]}
80... b5 {[%clk 0:00:24.5]} 81. Rb1 {[%clk 0:00:08.8]} 81... Kb6 {[%clk
0:00:25.9]} 82. Rb2 {[%clk 0:00:07.6]} 82... Rh1 {[%clk 0:00:26.7]} 83. Kd5
{[%clk 0:00:08.2]} 83... Rd1+ {[%clk 0:00:27.8]} 84. Ke4 {[%clk 0:00:09.3]}
84... Kc5 {[%clk 0:00:28.5]} 85. Rc2+ {[%clk 0:00:09.7]} 85... Kb4 {[%clk
0:00:29.8]} 86. Rb2+ {[%clk 0:00:09.8]} 86... Kc4 {[%clk 0:00:30.9]} 87. Rc2+
{[%clk 0:00:11.3]} 87... Kb3 {[%clk 0:00:32.2]} 88. Rc8 {[%clk 0:00:12.8]} 88...
b4 {[%clk 0:00:33.5]} 89. Rb8 {[%clk 0:00:14.4]} 89... Ka3 {[%clk 0:00:34.6]}
90. Ra8+ {[%clk 0:00:15.1]} 90... Kb2 {[%clk 0:00:35.6]} 91. Rb8 {[%clk
0:00:17]} 91... b3 {[%clk 0:00:37]} 92. Ke3 {[%clk 0:00:18.7]} 92... Rd7 {[%clk
0:00:36.4]} 93. Ke2 {[%clk 0:00:20.6]} 93... Kc2 {[%clk 0:00:37.6]} 94. Rc8+
{[%clk 0:00:22.1]} 94... Kb1 {[%clk 0:00:38.2]} 95. Rb8 {[%clk 0:00:24]} 95...
b2 {[%clk 0:00:39.6]} 96. Rc8 {[%clk 0:00:25.9]} 96... Rd5 {[%clk 0:00:39]} 97.
Ra8 {[%clk 0:00:26.8]} 97... Kc2 {[%clk 0:00:40.1]} 98. Rc8+ {[%clk 0:00:28]}
98... Kb3 {[%clk 0:00:41.3]} 99. Rb8+ {[%clk 0:00:28.6]} 99... Kc3 {[%clk
0:00:42.6]} 100. Ke3 {[%clk 0:00:29.3]} 100... Re5+ {[%clk 0:00:42.9]} 101. Kf4
{[%clk 0:00:30.1]} 101... Re1 {[%clk 0:00:43.9]} 102. Rc8+ {[%clk 0:00:27.3]}
102... Kd4 {[%clk 0:00:42.7]} 103. Rd8+ {[%clk 0:00:27.9]} 103... Kc5 {[%clk
0:00:44]} 0-1